bitfinex/quotes_BTCUSD_20250115
["timestamp","ask_amount","ask_price","bid_price","bid_amount"]
[1736944865744,0.000495,97094.0,97093.0,0.34877598]
[1736944865982,0.000495,97094.0,97093.0,0.35489598]
[1736944866413,0.000495,97094.0,97093.0,0.34877598]
[1736944867537,0.000495,97094.0,97093.0,0.33977598]
[1736944867749,0.000495,97094.0,97093.0,0.34877598]
[1736944870911,0.000495,97094.0,97093.0,0.33977598]
[1736944871148,0.000495,97094.0,97093.0,0.51456686]
[1736944871497,0.000772,97107.0,97106.0,0.023]
[1736944871713,0.0004,97119.0,97118.0,0.228935]
[1736944871957,0.0004,97119.0,97118.0,1.98928192]
[1736944872163,7.4e-07,97119.0,97118.0,2.65903292]
[1736944872362,7.4e-07,97119.0,97118.0,1.98928192]
[1736944872568,7e-05,97139.0,97138.0,0.355892]
[1736944872775,0.00021833,97139.0,97138.0,0.48311892]
[1736944873197,3.3e-07,97139.0,97138.0,0.97089192]
[1736944873401,0.1,97190.0,97158.0,0.22885]
[1736944873550,0.1769,97192.0,97158.0,0.33919692]
[1736944873754,0.0769,97192.0,97158.0,0.33919692]
[1736944873958,4e-07,97168.0,97167.0,0.355831]
[1736944874129,0.004122,97215.0,97167.0,0.355831]
[1736944874130,0.104122,97215.0,97170.0,0.023]
[1736944874343,0.09286607,97216.0,97198.0,0.205765]
[1736944874344,0.00054827,97199.0,97198.0,0.205765]
[1736944874548,0.00054827,97199.0,97198.0,0.30999192]
[1736944874727,0.00054827,97199.0,97198.0,0.62739792]
[1736944874933,0.00054827,97199.0,97198.0,0.48911192]
[1736944875139,0.00054827,97199.0,97198.0,0.33299192]
[1736944875342,0.00054827,97199.0,97198.0,0.33911192]
[1736944875546,0.00054827,97199.0,97198.0,0.10422692]
[1736944875968,0.00054827,97199.0,97196.0,0.13744838]
[1736944876587,0.00054827,97199.0,97198.0,0.001]
[1736944876795,0.00054827,97199.0,97187.0,0.205787]
[1736944876998,0.00054827,97199.0,97181.0,0.2058]
[1736944876999,0.205765,97198.0,97181.0,0.2058]
[1736944877198,0.205765,97198.0,97196.0,0.006]
[1736944877403,0.205785,97189.0,97165.0,0.14356838]
[1736944877604,0.20631127,97199.0,97165.0,0.14356838]
[1736944877605,0.18331039,97190.0,97168.0,0.10422692]
[1736944877830,0.205797,97183.0,97168.0,0.10422692]
[1736944878049,0.205797,97183.0,97169.0,0.205826]
[1736944878230,0.18331039,97180.0,97165.0,0.13744838]
[1736944878436,0.205805,97179.0,97161.0,0.205843]
[1736944878640,0.205805,97179.0,97162.0,0.10422692]
[1736944879132,0.205803,97180.0,97162.0,0.10422692]
[1736944879550,0.205803,97180.0,97163.0,0.205839]
[1736944879796,0.205803,97180.0,97164.0,0.10422692]
[1736944880227,0.0769,97184.0,97165.0,0.023]
[1736944880428,0.0769,97184.0,97171.0,0.205822]
[1736944880645,0.0769,97184.0,97172.0,0.10422692]
[1736944881023,0.001,97180.0,97172.0,0.10422692]
[1736944881224,0.0769,97184.0,97172.0,0.10422692]
[1736944881225,0.205797,97183.0,97172.0,0.10422692]
[1736944881424,0.03362565,97183.0,97172.0,0.10422692]
[1736944881570,0.0789,97184.0,97172.0,0.10422692]
[1736944882165,0.38910939,97182.0,97172.0,0.10422692]
[1736944882384,0.205799,97182.0,97172.0,0.10422692]
[1736944882623,0.38910939,97182.0,97172.0,0.10422692]
[1736944883023,0.38910939,97182.0,97168.0,0.00178962]
[1736944883311,0.20581,97177.0,97172.0,0.002]
[1736944883688,0.20581,97177.0,97168.0,0.00178962]
[1736944883895,0.20581,97177.0,97172.0,0.002]
[1736944884087,0.41162,97177.0,97172.0,0.002]
[1736944884395,0.20581,97177.0,97168.0,0.00178962]
[1736944884563,0.20581,97177.0,97172.0,0.004]
[1736944884769,0.411621,97177.0,97172.0,0.004]
[1736944884976,0.205814,97175.0,97172.0,0.004]
[1736944885198,0.411628,97175.0,97172.0,0.004]
[1736944886397,0.1,97180.0,97168.0,0.00178962]
[1736944886553,0.205726,97170.0,97168.0,0.00178962]
[1736944886988,0.1,97169.0,97168.0,0.00178962]
[1736944887871,0.2,97169.0,97168.0,0.00178962]
[1736944888070,0.20014822,97169.0,97168.0,0.00178962]
[1736944889674,0.20214822,97169.0,97168.0,0.00178962]
[1736944891098,0.10214822,97169.0,97168.0,0.00178962]
[1736944894722,0.00214822,97169.0,97168.0,0.00178962]
[1736944894881,0.10214822,97169.0,97168.0,0.00178962]
[1736944895402,0.00214822,97169.0,97168.0,0.10601654]
[1736944895560,0.00214822,97169.0,97168.0,0.27901654]
[1736944895996,0.00214822,97169.0,97168.0,0.32461654]
[1736944896130,0.00214822,97169.0,97168.0,0.42461654]
[1736944896332,0.0008522,97170.0,97169.0,0.478826]
[1736944896557,0.0008522,97170.0,97169.0,2.05961092]
[1736944896775,0.0008522,97170.0,97169.0,2.02091792]
[1736944896976,0.0008522,97170.0,97169.0,3.52091792]
[1736944897189,0.0008522,97170.0,97169.0,2.25149014]
[1736944897810,0.0008522,97170.0,97169.0,3.75149014]
[1736944897964,2e-07,97170.0,97169.0,3.62991792]
[1736944898173,0.00140039,97199.0,97198.0,0.205765]
[1736944898382,0.00140039,97199.0,97198.0,0.31627192]
[1736944899586,0.00140039,97199.0,97198.0,0.32327192]
[1736944900106,0.00140039,97199.0,97198.0,0.40627192]
[1736944900469,0.00140039,97199.0,97198.0,0.32327192]
[1736944900894,0.00140039,97199.0,97198.0,0.31699192]
[1736944902044,0.00140039,97199.0,97198.0,0.51118492]
[1736944902657,0.00140039,97199.0,97198.0,0.49017692]
[1736944902858,0.00140039,97199.0,97198.0,0.53752692]
[1736944903318,0.00140039,97199.0,97198.0,0.50952692]
[1736944903516,0.00140039,97199.0,97198.0,0.31899192]
[1736944903672,0.00140039,97199.0,97198.0,0.32527192]
[1736944904482,0.00140039,97199.0,97198.0,0.31899192]
[1736944906307,0.00140039,97199.0,97198.0,0.30999192]
[1736944906502,0.00140039,97199.0,97198.0,0.31499192]
[1736944908754,0.00140039,97199.0,97198.0,0.005]
[1736944908977,0.20716339,97199.0,97198.0,0.005]
[1736944909133,0.30716339,97199.0,97198.0,0.005]
[1736944909335,0.20716339,97199.0,97198.0,0.005]
[1736944909770,0.00140039,97199.0,97178.0,0.01048548]
[1736944909987,0.00140039,97199.0,97180.0,0.205803]
[1736944910200,0.00140039,97199.0,97198.0,0.001]
[1736944910771,0.00140039,97199.0,97187.0,0.205787]
[1736944910992,0.00140039,97199.0,97188.0,0.10422692]
[1736944911414,0.04665546,97198.0,97188.0,0.10422692]
[1736944911679,0.00140039,97199.0,97188.0,0.10422692]
[1736944911680,0.205774,97194.0,97188.0,0.10422692]
[1736944911853,0.205776,97193.0,97180.0,0.206803]
[1736944912075,0.205776,97193.0,97181.0,0.10422692]
[1736944912233,0.205788,97188.0,97180.0,0.001]
[1736944912818,0.205788,97188.0,97176.0,0.205811]
[1736944913094,0.205788,97188.0,97178.0,0.205807]
[1736944913303,0.205788,97188.0,97178.0,0.10422692]
[1736944913697,0.205775,97194.0,97180.0,0.006]
[1736944914026,0.00140039,97199.0,97181.0,0.10422692]
[1736944914225,0.00140039,97199.0,97198.0,0.205765]
[1736944914469,0.00140039,97199.0,97198.0,0.10422692]
[1736944916594,0.00140039,97199.0,97198.0,0.10522692]
[1736944920660,0.00140039,97199.0,97198.0,0.001]
[1736944924770,0.10140039,97199.0,97198.0,0.001]
[1736944925577,0.1,97197.0,97178.0,0.205806]
[1736944925772,0.1,97197.0,97178.0,0.31003292]
[1736944925773,0.205784,97190.0,97178.0,0.31003292]
[1736944926012,0.1,97194.0,97170.0,0.00178962]
[1736944926363,0.1,97189.0,97171.0,0.10422692]
[1736944927075,0.205817,97174.0,97170.0,0.00178962]
[1736944927285,0.205817,97174.0,97170.0,0.00378962]
[1736944927688,0.411634,97174.0,97170.0,0.00378962]
[1736944929243,0.411634,97174.0,97170.0,0.00178962]
[1736944929466,0.50559696,97174.0,97170.0,0.00178962]
[1736944929699,0.1,97171.0,97170.0,0.00178962]
[1736944929901,0.1803,97171.0,97170.0,0.00178962]
[1736944935079,0.18017614,97171.0,97170.0,0.00178962]
[1736944940326,0.09987614,97172.0,97170.0,0.00178962]
[1736944941370,0.205822,97171.0,97170.0,0.00178962]
[1736944943351,0.30569814,97171.0,97170.0,0.00178962]
[1736944943553,0.36684935,97171.0,97170.0,0.00178962]
[1736944944099,0.205822,97171.0,97170.0,0.00178962]
[1736944944239,0.30569814,97171.0,97170.0,0.00178962]
[1736944944715,0.0008522,97172.0,97170.0,0.00178962]
[1736944945105,0.0008522,97172.0,97170.0,0.20761162]
[1736944945829,0.0008522,97172.0,97170.0,0.00178962]
[1736944946220,0.0008522,97172.0,97170.0,0.20761362]
[1736944948540,0.0008522,97172.0,97171.0,0.10435078]
[1736944948758,0.0008522,97172.0,97171.0,0.18195078]
[1736944948971,0.0008522,97172.0,97171.0,0.2552797]
[1736944949145,0.0008522,97172.0,97171.0,2.63284978]
[1736944949978,0.0008522,97172.0,97171.0,1.92348178]
[1736944950193,0.0008522,97172.0,97171.0,1.91748178]
[1736944950327,0.0008522,97172.0,97171.0,1.92780944]
[1736944951562,2e-07,97172.0,97171.0,1.92780944]
[1736944951760,2e-07,97172.0,97171.0,0.27357844]
[1736944954021,2e-07,97172.0,97171.0,0.42357844]
[1736944954229,0.09987614,97225.0,97198.0,0.282565]
[1736944954435,0.30558414,97225.0,97198.0,0.38679192]
[1736944954774,0.09987614,97225.0,97198.0,0.38679192]
[1736944954991,0.30558414,97225.0,97198.0,0.38679192]
[1736944955388,0.30558414,97225.0,97198.0,0.38779192]
[1736944955593,0.30558414,97225.0,97198.0,0.38679192]
[1736944956023,0.51129214,97225.0,97198.0,0.39579192]
[1736944956973,0.205717,97221.0,97198.0,0.4059378]
[1736944957204,0.30558414,97225.0,97198.0,0.4059378]
[1736944957994,0.205717,97221.0,97198.0,0.4059378]
[1736944958624,0.205725,97217.0,97198.0,0.3291378]
[1736944958804,0.09987614,97216.0,97198.0,0.31899192]
[1736944958999,0.1,97223.0,97198.0,0.31899192]
[1736944959234,0.205711,97224.0,97198.0,0.31899192]
[1736944959702,0.411422,97224.0,97198.0,0.31899192]
[1736944959905,0.205711,97224.0,97198.0,0.31899192]
[1736944961208,0.1279,97231.0,97198.0,0.39161578]
[1736944961848,0.1279,97231.0,97198.0,1.89161578]
[1736944962178,0.1279,97231.0,97198.0,1.88261578]
[1736944962383,0.1279,97231.0,97198.0,1.89161578]
[1736944963014,0.1279,97231.0,97198.0,0.31899192]
[1736944963015,0.22206575,97220.0,97198.0,0.31899192]
[1736944963380,0.205753,97204.0,97198.0,0.009]
[1736944963582,0.02747925,97199.0,97198.0,0.009]
[1736944963813,0.00140039,97199.0,97198.0,0.009]
[1736944964743,0.205765,97198.0,97184.0,0.205793]
[1736944964931,0.205767,97197.0,97184.0,0.205793]
[1736944965399,0.00140039,97199.0,97187.0,0.12231347]
[1736944965608,0.00140039,97199.0,97196.0,0.205769]
[1736944965808,0.00140039,97199.0,97198.0,0.205765]
[1736944965992,0.00140039,97199.0,97198.0,0.30999192]
[1736944968330,0.00140039,97199.0,97198.0,0.31599192]
[1736944969390,0.00140039,97199.0,97198.0,0.211765]
[1736944969595,0.00140039,97199.0,97198.0,0.006]
[1736944971624,0.00140039,97199.0,97198.0,0.007]
[1736944973428,0.20716339,97199.0,97198.0,0.007]
[1736944973628,0.28438166,97199.0,97198.0,0.007]
[1736944974005,0.20716339,97199.0,97198.0,0.007]
[1736944974414,0.00140039,97199.0,97198.0,0.007]
[1736944975889,0.00114216,97199.0,97198.0,0.007]
[1736944976486,0.20690516,97199.0,97198.0,0.007]
[1736944977409,0.00114216,97199.0,97198.0,0.007]
[1736944977842,0.20690516,97199.0,97198.0,0.007]
[1736944979402,0.20690516,97199.0,97198.0,0.00696]
[1736944980190,0.00114216,97199.0,97198.0,0.00696]
[1736944980939,0.08245591,97199.0,97198.0,0.00696]
[1736944981506,0.00114216,97199.0,97198.0,0.00696]
[1736944983944,0.205765,97198.0,97186.0,0.205789]
[1736944984347,0.205765,97198.0,97186.0,0.411579]
[1736944985135,0.205765,97198.0,97186.0,0.205789]
[1736944985365,0.00114216,97199.0,97186.0,0.001]
[1736944985571,0.00114216,97199.0,97187.0,0.31001492]
[1736944986248,0.00114216,97199.0,97189.0,0.12218961]
[1736944986468,0.00114216,97199.0,97198.0,0.00012386]
[1736944986668,0.00114216,97199.0,97198.0,0.21657078]
[1736944987291,0.00114216,97199.0,97198.0,0.22692082]
[1736944987496,0.00114216,97199.0,97198.0,0.22060082]
[1736944987695,0.00114216,97199.0,97198.0,0.22692082]
[1736944987972,0.00114216,97199.0,97198.0,0.23492082]
[1736944988176,0.00114216,97199.0,97198.0,0.22692082]
[1736944988604,0.00114216,97199.0,97198.0,0.23592082]
[1736944988818,0.00114216,97199.0,97198.0,0.22960082]
[1736944989038,0.00114216,97199.0,97198.0,0.21292082]
[1736944991464,0.00114216,97199.0,97198.0,0.22960082]
[1736944991667,0.0004,97239.0,97234.0,0.205688]
[1736944991873,0.0004,97239.0,97236.0,0.205685]
[1736944992076,0.00142658,97237.0,97236.0,0.30991192]
[1736944992281,0.00142658,97237.0,97236.0,0.31003578]
[1736944992486,0.00142658,97237.0,97236.0,0.42225578]
[1736944992712,0.00142658,97237.0,97236.0,1.49639478]
[1736944992917,5.8e-07,97237.0,97236.0,1.67399478]
[1736944993093,5.8e-07,97237.0,97236.0,0.61865578]
[1736944993344,5.7e-05,97274.0,97267.0,0.12942386]
[1736944993559,5.7e-05,97274.0,97267.0,0.10422692]
[1736944993733,0.00109451,97268.0,97267.0,0.10422692]
[1736944994556,0.205619,97267.0,97253.0,0.09156824]
[1736944994706,0.00109451,97268.0,97254.0,0.10422692]
[1736944994906,0.00521351,97268.0,97254.0,0.10422692]
[1736944995106,0.00109451,97268.0,97267.0,0.008]
[1736944995532,0.00109451,97268.0,97267.0,0.11222692]
[1736944996146,0.00109451,97268.0,97267.0,0.10422692]
[1736944996596,0.00109451,97268.0,97267.0,0.10435078]
[1736944996799,0.00109451,97268.0,97267.0,0.25967875]
[1736944996944,0.00109451,97268.0,97267.0,0.25865078]
[1736944997662,0.00109451,97268.0,97267.0,0.25665078]
[1736944997860,0.00109451,97268.0,97267.0,0.25865078]
[1736944998045,0.00109451,97268.0,97267.0,0.25665078]
[1736944998443,5.7e-05,97274.0,97273.0,0.25012386]
[1736944998645,0.0004,97279.0,97278.0,0.28582386]
[1736944998858,0.0004,97279.0,97278.0,3.05234478]
[1736944999069,0.0004,97279.0,97278.0,0.54649278]
[1736944999320,0.0004,97279.0,97278.0,0.57581278]
[1736944999674,0.0004,97279.0,97278.0,0.48610678]
[1736944999902,0.0004,97279.0,97278.0,0.31937078]
[1736945000310,0.0004,97279.0,97278.0,0.32955879]
[1736945000668,0.0004,97279.0,97278.0,0.32323879]
[1736945000873,0.0004,97279.0,97278.0,0.58912279]
[1736945001080,0.0004,97279.0,97278.0,0.49477979]
[1736945001296,0.0004,97279.0,97278.0,0.33855879]
[1736945003310,0.0004,97279.0,97278.0,0.87669279]
[1736945003505,0.0004,97279.0,97278.0,1.12582879]
[1736945003712,0.0004,97279.0,97278.0,0.98788679]
[1736945004040,0.0004,97279.0,97278.0,0.33855879]
[1736945004280,0.0004,97279.0,97278.0,0.54104479]
[1736945004831,0.0012531,97279.0,97278.0,0.54104479]
[1736945005254,0.0012531,97279.0,97278.0,0.33855879]
[1736945007209,0.0012531,97279.0,97278.0,1.07142579]
[1736945007607,0.0012531,97279.0,97278.0,1.06242579]
[1736945007876,0.0012531,97279.0,97278.0,1.07142579]
[1736945009096,0.0012531,97279.0,97278.0,1.04718179]
[1736945009327,0.0012531,97279.0,97278.0,0.89224279]
[1736945010702,0.0012531,97279.0,97278.0,0.88324279]
[1736945010903,0.0012531,97279.0,97278.0,0.48127279]
[1736945011105,0.0012531,97279.0,97278.0,0.49027279]
[1736945011313,0.0012531,97279.0,97278.0,0.47314279]
[1736945011486,0.0012531,97279.0,97278.0,0.67873879]
[1736945012455,0.0012531,97279.0,97278.0,0.67241879]
[1736945012677,0.0012531,97279.0,97278.0,0.66973879]
[1736945013095,0.0012531,97279.0,97278.0,0.67873879]
[1736945013299,0.0012531,97279.0,97278.0,0.66973879]
[1736945013728,0.0012531,97279.0,97278.0,0.67873879]
[1736945014461,0.0012531,97279.0,97278.0,0.54415479]
[1736945015027,0.0012531,97279.0,97278.0,0.67205279]
[1736945017131,0.0012531,97279.0,97278.0,0.66573279]
[1736945017340,0.0012531,97279.0,97278.0,0.54415479]
[1736945017737,0.0012531,97279.0,97278.0,0.64792279]
[1736945018006,0.0012531,97279.0,97278.0,0.54415479]
[1736945018657,0.0012531,97279.0,97278.0,0.38783479]
[1736945018827,0.0012531,97279.0,97278.0,0.35213479]
[1736945019024,0.0012531,97279.0,97278.0,0.35845479]
[1736945019234,0.0011531,97279.0,97278.0,0.35845479]
[1736945019438,0.0011531,97279.0,97278.0,0.32901093]
[1736945019648,0.0011531,97279.0,97278.0,0.31882292]
[1736945020093,0.0011531,97279.0,97278.0,0.30982292]
[1736945020331,0.0011531,97279.0,97278.0,0.31882292]
[1736945020537,0.0011531,97279.0,97278.0,0.30982292]
[1736945020737,0.0011531,97279.0,97274.0,0.20739488]
[1736945020738,0.0011531,97279.0,97274.0,0.00179088]
[1736945020895,0.0011531,97279.0,97278.0,0.007]
[1736945021759,0.0011531,97279.0,97278.0,0.31682292]
[1736945022349,0.0011531,97279.0,97278.0,0.30982292]
[1736945022553,0.0011531,97279.0,97278.0,0.31382292]
[1736945024863,0.0011531,97279.0,97278.0,0.31394678]
[1736945026409,0.0011531,97279.0,97278.0,0.30994678]
[1736945026720,0.0011531,97279.0,97278.0,0.32620184]
[1736945027362,0.0011531,97279.0,97278.0,0.32607798]
[1736945027574,0.0011531,97279.0,97278.0,0.31582292]
[1736945027960,0.0011531,97279.0,97278.0,0.006]
[1736945028381,0.0011531,97279.0,97278.0,0.211596]
[1736945030072,0.0011531,97279.0,97278.0,0.205596]
[1736945030290,0.0011531,97279.0,97278.0,0.209596]
[1736945031306,0.0011531,97279.0,97278.0,0.31382292]
[1736945031525,0.0011531,97279.0,97278.0,0.31394678]
[1736945032129,0.0011531,97279.0,97278.0,0.30994678]
[1736945032532,0.0011531,97279.0,97278.0,0.31394678]
[1736945032754,0.0011531,97279.0,97278.0,0.30994678]
[1736945033079,0.0011531,97279.0,97278.0,0.40951502]
[1736945034101,0.0011531,97279.0,97278.0,0.40939116]
[1736945034541,0.0804531,97279.0,97278.0,0.09956824]
[1736945034889,0.0804531,97279.0,97278.0,0.008]
[1736945035870,0.0804531,97279.0,97275.0,0.01030725]
[1736945036074,0.0804531,97279.0,97276.0,0.10422692]
[1736945036674,0.0804531,97279.0,97278.0,0.007]
[1736945037058,0.0804531,97279.0,97274.0,0.00179088]
[1736945038302,0.0804531,97279.0,97276.0,0.007]
[1736945038651,0.0804531,97279.0,97274.0,0.00179088]
[1736945038851,0.205596,97278.0,97274.0,0.00879088]
[1736945039302,0.411193,97278.0,97274.0,0.00179088]
[1736945039560,0.205596,97278.0,97276.0,0.007]
[1736945039943,0.205596,97278.0,97274.0,0.00179088]
[1736945040172,0.205596,97278.0,97274.0,0.00379088]
[1736945040329,0.205596,97278.0,97274.0,0.00375088]
[1736945040738,0.0804531,97279.0,97274.0,0.00375088]
[1736945040950,0.205598,97277.0,97274.0,0.00375088]
[1736945041143,0.09987614,97275.0,97274.0,0.00375088]
[1736945041320,0.17917614,97275.0,97274.0,0.00375088]
[1736945041737,0.32837614,97275.0,97274.0,0.00375088]
[1736945042011,0.58260306,97275.0,97274.0,0.00175088]
[1736945042219,0.334157,97249.0,97248.0,0.09156824]
[1736945042372,0.334157,97249.0,97248.0,0.09171055]
[1736945042571,0.334157,97249.0,97248.0,0.00014231]
[1736945044008,0.334157,97249.0,97248.0,0.00414231]
[1736945044810,0.1285,97249.0,97248.0,0.00414231]
[1736945045424,0.16485508,97249.0,97248.0,0.00014231]
[1736945045800,0.26473122,97249.0,97248.0,0.00014231]
[1736945046287,0.26573122,97249.0,97248.0,0.00014231]
[1736945046487,0.43260306,97249.0,97248.0,0.00014231]
[1736945046905,0.43360306,97249.0,97248.0,0.00014231]
[1736945051126,0.43360306,97249.0,97248.0,0.00193319]
[1736945052242,0.22937614,97249.0,97248.0,0.00193319]
[1736945052616,0.32937614,97249.0,97248.0,0.00193319]
[1736945054552,0.38267584,97249.0,97248.0,0.00193319]
[1736945056478,0.32937614,97249.0,97248.0,0.00193319]
[1736945056651,0.32837614,97249.0,97248.0,0.00193319]
[1736945057058,0.32937614,97249.0,97248.0,0.00193319]
[1736945059890,0.43360306,97249.0,97248.0,0.00193319]
[1736945063290,0.60412171,97249.0,97248.0,0.00193319]
[1736945063496,0.70834863,97249.0,97248.0,0.00193319]
[1736945064885,0.70734863,97249.0,97248.0,0.00193319]
[1736945065034,0.70734863,97249.0,97222.0,4.99072468]
[1736945065035,0.205712,97223.0,97222.0,4.99072468]
[1736945065849,0.205712,97223.0,97204.0,0.205751]
[1736945066068,0.23810236,97223.0,97205.0,0.10422692]
[1736945066271,0.24110236,97223.0,97205.0,0.10422692]
[1736945067009,0.208712,97223.0,97205.0,0.10422692]
[1736945067446,0.003,97223.0,97206.0,0.205748]
[1736945067650,0.003,97223.0,97207.0,0.205746]
[1736945067852,0.003,97223.0,97214.0,0.205731]
[1736945068061,0.0779,97246.0,97217.0,0.00012386]
[1736945068244,0.09987614,97246.0,97230.0,0.12218961]
[1736945068478,0.13258855,97246.0,97224.0,0.205708]
[1736945068692,0.205668,97244.0,97225.0,0.205707]
[1736945069096,0.411336,97244.0,97225.0,0.205707]
[1736945069307,0.20567,97243.0,97225.0,0.205707]
[1736945069509,0.20567,97243.0,97229.0,0.205699]
[1736945069713,0.20567,97243.0,97225.0,0.205707]
[1736945069898,0.05163561,97242.0,97225.0,0.205707]
[1736945070188,0.05163561,97242.0,97225.0,0.411415]
[1736945070747,0.09987614,97241.0,97222.0,0.205714]
[1736945070949,0.09987614,97241.0,97221.0,0.205716]
[1736945071146,0.205679,97239.0,97221.0,0.205716]
[1736945071346,0.23623451,97239.0,97221.0,0.205716]
[1736945072351,0.205687,97235.0,97220.0,0.01039031]
[1736945072559,0.13243165,97239.0,97221.0,0.205716]
[1736945072918,0.205683,97237.0,97217.0,0.205724]
[1736945073039,0.205683,97237.0,97218.0,0.205723]
[1736945073259,0.205683,97237.0,97222.0,0.205713]
[1736945073478,0.1248,97236.0,97212.0,0.01007572]
[1736945073708,0.1248,97236.0,97208.0,0.21210586]
[1736945073709,0.205687,97235.0,97218.0,0.205721]
[1736945074446,0.1248,97236.0,97218.0,0.205721]
[1736945074667,0.30555914,97237.0,97221.0,0.205714]
[1736945075070,0.30655914,97237.0,97221.0,0.205714]
[1736945075427,0.20569,97234.0,97218.0,0.20751188]
[1736945075662,0.001,97236.0,97221.0,0.205715]
[1736945075863,0.205687,97235.0,97221.0,0.205715]
[1736945076081,0.30555914,97237.0,97221.0,0.205715]
[1736945076267,0.30955914,97237.0,97221.0,0.205715]
[1736945076659,0.30555914,97237.0,97221.0,0.205715]
[1736945077103,0.30543541,97237.0,97221.0,0.205715]
[1736945077462,0.30543541,97237.0,97221.0,0.42155214]
[1736945077687,0.30543541,97237.0,97221.0,0.21583614]
[1736945077863,0.004,97236.0,97221.0,0.21583614]
[1736945078263,0.30543541,97237.0,97221.0,0.01012114]
[1736945078472,0.30943541,97237.0,97222.0,0.205714]
[1736945078858,0.30543541,97237.0,97222.0,0.205714]
[1736945079083,0.004,97236.0,97222.0,0.205714]
[1736945080835,0.05591114,97236.0,97222.0,0.205714]
[1736945080983,0.05191114,97236.0,97222.0,0.205714]
[1736945081386,0.05591114,97236.0,97222.0,0.205214]
[1736945081586,0.004,97236.0,97222.0,0.205214]
[1736945082025,0.004,97236.0,97222.0,0.410928]
[1736945082441,0.004,97236.0,97222.0,0.205214]
[1736945083055,0.205687,97235.0,97219.0,0.21601587]
[1736945083372,0.205696,97231.0,97219.0,0.01029587]
[1736945083528,0.09975241,97233.0,97219.0,0.01029587]
[1736945083734,0.205701,97229.0,97218.0,0.00179088]
[1736945084067,0.205693,97232.0,97218.0,0.00179088]
[1736945084314,0.09975241,97233.0,97219.0,0.205721]
[1736945084488,0.30544341,97233.0,97219.0,0.205721]
[1736945084695,0.05151264,97232.0,97219.0,0.205721]
[1736945086075,0.09975241,97234.0,97218.0,0.0120143]
[1736945086332,0.002,97232.0,97218.0,0.0120143]
[1736945086486,0.205695,97231.0,97218.0,0.0120143]
[1736945086696,0.30544741,97231.0,97218.0,0.0120143]
[1736945086932,0.205705,97227.0,97218.0,0.0120143]
[1736945087089,0.05131544,97226.0,97218.0,0.0120143]
[1736945087504,0.205708,97225.0,97218.0,0.0120143]
[1736945087704,0.05131544,97226.0,97218.0,0.0120143]
[1736945087907,0.205705,97227.0,97218.0,0.0120143]
[1736945089154,0.004,97226.0,97218.0,0.0120143]
[1736945090055,0.0778,97225.0,97218.0,0.0120143]
[1736945090219,0.209708,97226.0,97218.0,0.0120143]
[1736945091178,0.205708,97226.0,97218.0,0.0120143]
[1736945091379,0.205702,97228.0,97218.0,0.0120143]
[1736945091577,0.205704,97227.0,97218.0,0.0120143]
[1736945091789,0.004,97226.0,97218.0,0.0120143]
[1736945092001,0.004,97226.0,97218.0,0.00179088]
[1736945092546,0.205704,97227.0,97218.0,0.00179088]
[1736945092773,0.209704,97227.0,97218.0,0.00179088]
[1736945092970,0.004,97227.0,97218.0,0.00179088]
[1736945094237,0.2057,97229.0,97218.0,0.00179088]
[1736945094432,0.004,97226.0,97218.0,0.00179088]
[1736945094725,0.2057,97229.0,97218.0,0.00179088]
[1736945095129,0.004,97227.0,97218.0,0.00179088]
[1736945095356,0.2057,97229.0,97218.0,0.00179088]
[1736945095668,0.004,97226.0,97218.0,0.00179088]
[1736945095868,0.209707,97226.0,97218.0,0.00179088]
[1736945096114,0.205707,97226.0,97218.0,0.00179088]
[1736945097937,0.09975241,97231.0,97218.0,0.00179088]
[1736945098256,0.004,97226.0,97218.0,0.00179088]
[1736945098885,0.205702,97228.0,97218.0,0.00179088]
[1736945099924,0.09975241,97228.0,97218.0,0.00179088]
[1736945100148,0.205716,97222.0,97218.0,0.00179088]
[1736945100575,0.09975241,97219.0,97218.0,0.00179088]
[1736945101037,0.35397933,97219.0,97218.0,0.00175088]
[1736945101299,0.45397933,97219.0,97218.0,0.00175088]
[1736945101902,0.45397933,97219.0,97218.0,0.00224474]
[1736945102140,0.55820625,97219.0,97218.0,0.00224474]
[1736945102315,0.56320625,97219.0,97218.0,0.00324474]
[1736945102489,0.45897933,97219.0,97218.0,0.00324474]
[1736945103225,0.55153483,97219.0,97218.0,0.00324474]
[1736945104016,0.45897933,97219.0,97218.0,0.00324474]
[1736945105190,0.205742,97209.0,97200.0,0.99024472]
[1736945106216,0.411484,97209.0,97200.0,0.99024472]
[1736945106373,0.205742,97209.0,97200.0,0.99024472]
[1736945107125,0.209742,97209.0,97200.0,0.99015303]
[1736945107355,0.205751,97205.0,97200.0,0.99015303]
[1736945107684,0.209742,97209.0,97200.0,0.99015303]
[1736945108593,0.205751,97205.0,97200.0,0.99015303]
[1736945108827,0.208751,97205.0,97200.0,0.99015303]
[1736945109500,0.205758,97202.0,97200.0,0.99015303]
[1736945110983,0.206758,97202.0,97200.0,0.99015303]
[1736945111615,0.208758,97202.0,97200.0,0.99015303]
[1736945111828,0.003,97202.0,97201.0,0.0806]
[1736945112039,0.0925555,97215.0,97204.0,0.023]
[1736945112251,0.0925555,97215.0,97212.0,0.205735]
[1736945112456,0.00049325,97219.0,97208.0,0.205742]
[1736945112457,0.0925555,97218.0,97208.0,0.205742]
[1736945112675,0.0925555,97218.0,97212.0,0.205735]
[1736945113259,0.00049325,97219.0,97212.0,0.205735]
[1736945113617,0.205725,97217.0,97204.0,0.205752]
[1736945114030,0.207723,97218.0,97207.0,0.205745]
[1736945114225,0.413446,97218.0,97204.0,0.205752]
[1736945114346,0.205723,97218.0,97208.0,0.205744]
[1736945114705,0.03365644,97217.0,97208.0,0.205744]
[1736945115460,0.03365644,97217.0,97204.0,0.205752]
[1736945115664,0.208723,97218.0,97204.0,0.205752]
[1736945115861,0.208723,97218.0,97207.0,0.205744]
[1736945116473,0.205723,97218.0,97207.0,0.205744]
[1736945116892,0.208723,97218.0,97207.0,0.205744]
[1736945117530,0.211723,97218.0,97207.0,0.205744]
[1736945117882,0.05176857,97217.0,97207.0,0.205744]
[1736945118317,0.05176857,97217.0,97204.0,0.205752]
[1736945118502,0.05176857,97217.0,97207.0,0.205744]
[1736945119325,0.006,97218.0,97211.0,0.205737]
[1736945119526,0.006,97218.0,97207.0,0.205744]
[1736945120142,0.00049325,97219.0,97207.0,0.205744]
[1736945120344,0.003,97217.0,97207.0,0.205744]
[1736945120743,0.00049325,97219.0,97204.0,0.205752]